fUSD/lending_fUSD_20250331
["ID","MTS","AMOUNT","RATE_DAILY","PERIOD"]
[356933841,1743437443268,-500.0,0.00054794,120]
[356933842,1743437443280,-500.0,0.00054794,120]
[356933843,1743437443291,-500.0,0.00054794,120]
[356933844,1743437443302,-500.0,0.00054794,120]
[356933845,1743437443312,-500.0,0.00054794,120]
[356933846,1743437443322,-500.0,0.00054794,120]
[356933847,1743437443331,-500.0,0.00054794,120]
[356933848,1743437443342,-504.86891563,0.00054794,120]
[356933849,1743437443352,-500.0,0.00054794,120]
[356933850,1743437443361,-500.0,0.00054794,120]
[356933851,1743437443371,-500.0,0.00054794,120]
[356933852,1743437443381,-500.0,0.00054794,120]
[356933853,1743437443391,-500.0,0.00054794,120]
[356933854,1743437443401,-500.0,0.00054794,120]
[356933855,1743437443411,-500.0,0.00054794,120]
[356933856,1743437443421,-500.0,0.00054794,120]
[356933857,1743437443430,-500.0,0.00054794,120]
[356933858,1743437443440,-500.0,0.00054794,120]
[356933859,1743437443451,-488.74307564,0.00054794,120]
[356933860,1743437443461,-500.0,0.00054794,120]
[356933861,1743437443471,-500.0,0.00054794,120]
[356933863,1743437443482,-355.25111293,0.00054794,120]
[356933864,1743437443492,-500.0,0.00054794,120]
[356933865,1743437443502,-500.0,0.00054794,120]
[356933866,1743437443512,-500.0,0.00054794,120]
[356933867,1743437443522,-500.0,0.00054794,120]
[356933868,1743437443533,-500.0,0.00054794,120]
[356933869,1743437443543,-500.0,0.00054794,120]
[356933870,1743437443553,-219.536275,0.00054795,120]
[356933872,1743437443563,-150.0,0.00054795,120]
[356933873,1743437443573,-500.0,0.00054795,120]
[356933874,1743437443582,-500.0,0.00054795,120]
[356933875,1743437443592,-500.0,0.00054795,120]
[356933876,1743437443603,-353.92,0.00054818,2]
[356933877,1743437443613,-752.04888038,0.000549,120]
[356933878,1743437443623,-2000.0,0.000549,7]
[356933879,1743437443633,-5119.70768389,0.00055,2]
[356933880,1743437443643,-1302.27,0.00055,60]
[356933881,1743437443653,-232.81226,0.00055,120]
[356933882,1743437443663,-1583.60703432,0.00055,120]
[356933883,1743437443672,-150.0,0.00055069,120]
[356933884,1743437443682,-500.0,0.00055069,120]
[356933885,1743437443692,-500.0,0.00055069,120]
[356933886,1743437443701,-500.0,0.00055069,120]
[356933887,1743437443711,-2000.0,0.000552,7]
[356933888,1743437443721,-5032.6328033,0.000552,7]
[356933889,1743437443731,-150.0,0.00055343,120]
[356933890,1743437443741,-500.0,0.00055343,120]
[356933891,1743437443750,-500.0,0.00055343,120]
[356933892,1743437443760,-500.0,0.00055343,120]
[356933893,1743437443771,-8000.0,0.000555,7]
[356933894,1743437443780,-480.05829535,0.00055573,120]
[356933895,1743437443790,-154.99,0.000556,54]
[356933896,1743437443802,-154.99,0.000556,54]
[356933897,1743437443812,-150.0,0.00055617,120]
[356933898,1743437443821,-500.0,0.00055617,120]
[356933899,1743437443831,-500.0,0.00055617,120]
[356933900,1743437443842,-500.0,0.00055617,120]
[356933901,1743437443851,-2968.0,0.000557,25]
[356933902,1743437443861,-2000.0,0.000557,7]
[356933903,1743437443871,-500.0,0.00055799,120]
[356933904,1743437443881,-1032.6328033,0.000558,7]
[356933905,1743437443891,-3295.35569862,0.0005586,7]
[356933906,1743437443902,-400.0,0.0005587,30]
[356933907,1743437443912,-191.19685902,0.0005589,7]
[356933908,1743437443922,-262.22714555,0.00055891,120]
[356933909,1743437443932,-500.0,0.00055891,120]
[356933910,1743437443942,-500.0,0.00055891,120]
[356933911,1743437443952,-502.24525,0.00055891,120]
[356933912,1743437443961,-1772.37322456,0.0005599,4]
[356933913,1743437443971,-151.26,0.0005599,120]
[356933914,1743437443980,-500.0,0.00055991,120]
[356933915,1743437443990,-256.4776085,0.00055998,120]
[356933916,1743437444000,-2000.0,0.00056,7]
[356933917,1743437444009,-250.0,0.00056,20]
[356933918,1743437444019,-464.89325634,0.00056,120]
[356933919,1743437444028,-46703.0,0.00056,120]
[356933920,1743437444038,-500.0,0.00056165,120]
[356933921,1743437444051,-232.81226,0.000564,120]
[356933922,1743437444061,-5000.0,0.000564,120]
[356933923,1743437444071,-500.0,0.00056439,120]
[356933924,1743437444080,-3400.0,0.000565,7]
[356933925,1743437444091,-1772.37322456,0.0005659,4]
[356933926,1743437444101,-8000.0,0.000566,7]
[356933927,1743437444110,-500.0,0.00056713,120]
[356933928,1743437444121,-500.0,0.00056957,120]
[356933929,1743437444130,-500.0,0.00056987,120]
[356933930,1743437444141,-19496.1054702,0.0005699,4]
[356933931,1743437444152,-500.0,0.00056999,120]
[356933932,1743437444162,-250.0,0.00057,20]
[356933933,1743437444171,-151269.9573103,0.00057,120]
[356933934,1743437444282,-7089.98355899,0.00057,120]
[356933935,1743437444304,-522.98966804,0.00054794,120]
[356933936,1743437444314,-638.34174103,0.00057,120]
[356933937,1743437444369,-150.0,0.000511,2]
[356933938,1743437444380,-11121.87373165,0.00057,120]
[356933939,1743437444393,-550.0,0.00057,120]
[356933940,1743437444405,-511.44,0.00057,120]
[356933941,1743437444476,-9346.01628913,0.00057,120]
[356933942,1743437444488,-8907.03180495,0.00057,120]
[356933943,1743437444499,-19859.22798011,0.00057,120]
[356933944,1743437444513,-3851.88067642,0.00057,120]
[356933945,1743437444525,-1678.22164924,0.00057,120]
[356933946,1743437444536,-2002.09643,0.00057,120]
[356933947,1743437444549,-500.0,0.00057,120]
[356933948,1743437444561,-14266.80662714,0.00057,120]
[356933949,1743437444573,-1258.83220104,0.00057,120]
[356933950,1743437444583,-1071.71763485,0.00057,120]
[356933951,1743437444593,-1547.49858398,0.00057,120]
[356933952,1743437444602,-353.92,0.00057082,2]
[356933953,1743437444612,-500.0,0.00057261,120]
[356933954,1743437444622,-889.77323113,0.00057524,4]
[356933955,1743437444633,-3103.3582,0.00057524,4]
[356933956,1743437444645,-4868.73469167,0.00057524,4]
[356933957,1743437444654,-17381.26530833,0.00057534,30]
[356933962,1743437445714,-4550.30377625,0.00057534,30]
[356933963,1743437445823,-150.0,0.00051677,120]
[356933966,1743437445834,-272.50332,0.00057534,30]
[356933968,1743437445847,-12335.84939021,0.00057534,30]
[356933969,1743437445888,-6815.25217941,0.00057534,30]
[356933970,1743437445899,-500.0,0.00057534,120]
[356933971,1743437445908,-500.0,0.00057534,120]
[356933972,1743437445918,-500.0,0.00057534,120]
[356933973,1743437445927,-500.0,0.00057534,2]
[356933974,1743437445937,-500.0,0.00057534,120]
[356933975,1743437445946,-300.0,0.00057534,120]
[356933976,1743437445956,-500.0,0.00057534,120]
[356933977,1743437445966,-500.0,0.00057534,120]
[356933978,1743437445975,-500.0,0.00057534,120]
[356933979,1743437445985,-500.0,0.00057534,120]
[356933980,1743437445995,-500.0,0.00057534,120]
[356933981,1743437446005,-500.0,0.00057534,120]
[356933982,1743437446016,-500.0,0.00057534,60]
[356933983,1743437446026,-500.0,0.00057534,120]
[356933984,1743437446036,-500.0,0.00057534,120]
[356933985,1743437446047,-500.0,0.00057534,120]
[356933986,1743437446057,-500.0,0.00057534,120]
[356933987,1743437446067,-414.55060653,0.00057534,120]
[356933988,1743437446077,-500.0,0.00057534,120]
[356933989,1743437446087,-500.0,0.00057534,120]
[356933990,1743437446096,-500.0,0.00057534,120]
[356933991,1743437446107,-500.0,0.00057534,120]
[356933992,1743437446117,-500.0,0.00057534,120]
[356933993,1743437446127,-500.0,0.00057534,120]
[356933994,1743437446137,-500.0,0.00057534,120]
[356933995,1743437446147,-161.58231085,0.00057534,120]
[356933996,1743437446157,-500.0,0.00057534,120]
[356933997,1743437446166,-500.0,0.00057534,120]
[356933998,1743437446176,-500.0,0.00057534,120]
[356933999,1743437446186,-204.39562695,0.00057534,120]
[356934000,1743437446202,-500.0,0.00057534,120]
[356934001,1743437446212,-500.0,0.00057534,120]
[356934002,1743437446222,-500.0,0.00057534,120]
[356934003,1743437446232,-500.0,0.00057534,120]
[356934004,1743437446243,-500.0,0.00057534,120]
[356934005,1743437446252,-500.0,0.00057534,120]
[356934006,1743437446262,-287.86980703,0.00057534,120]
[356934007,1743437446274,-500.0,0.00057534,120]
[356934008,1743437446285,-500.0,0.00057534,120]
[356934009,1743437446296,-500.0,0.00057534,120]
[356934010,1743437446306,-500.0,0.00057534,120]
[356934011,1743437446316,-500.0,0.00057534,120]
[356934012,1743437446326,-500.0,0.00057534,120]
[356934013,1743437446336,-500.0,0.00057534,120]
[356934014,1743437446347,-480.33655618,0.00057534,120]
[356934015,1743437446357,-314.03365012,0.00057534,120]
[356934016,1743437446367,-326.6887149,0.00057534,120]
[356934017,1743437446378,-500.0,0.00057534,120]
[356934018,1743437446388,-500.0,0.00057534,120]
[356934019,1743437446405,-500.0,0.00057534,120]
[356934020,1743437446417,-500.0,0.00057534,120]
[356934021,1743437446427,-500.0,0.00057534,120]
[356934022,1743437446437,-500.0,0.00057534,120]
[356934023,1743437446447,-500.0,0.00057534,120]
[356934024,1743437446457,-500.0,0.00057534,120]
[356934025,1743437446466,-846.91,0.00057534,120]
[356934026,1743437446476,-161.04205472,0.00057534,120]
[356934027,1743437446485,-500.0,0.00057534,120]
[356934028,1743437446495,-500.0,0.00057534,120]
[356934029,1743437446504,-500.0,0.00057534,120]
[356934030,1743437446659,-501.10219797,0.00057534,120]
[356934031,1743437446669,-500.0,0.00057534,120]
[356934032,1743437446679,-500.0,0.00057534,120]
[356934033,1743437446688,-500.0,0.00057534,120]
[356934034,1743437446700,-1167.29,0.00057534,120]
[356934035,1743437446709,-500.0,0.00057534,120]
[356934036,1743437446718,-500.0,0.00057534,120]
[356934037,1743437446727,-500.0,0.00057534,120]
[356934038,1743437446736,-500.0,0.00057534,120]
[356934039,1743437446746,-500.0,0.00057534,120]
[356934040,1743437446755,-500.0,0.00057534,120]
[356934041,1743437446765,-535.17634175,0.00057534,120]
[356934042,1743437446774,-473.13,0.00057534,120]
[356934043,1743437446784,-500.0,0.00057534,120]
[356934044,1743437446794,-500.0,0.00057534,120]
[356934045,1743437446803,-559.19,0.00057534,120]
[356934046,1743437446812,-1000.0,0.00057534,120]
[356934047,1743437446822,-500.0,0.00057534,120]
[356934048,1743437446831,-168.29456616,0.00057534,120]
[356934049,1743437446841,-500.0,0.00057534,120]
[356934050,1743437446850,-500.0,0.00057534,120]
[356934051,1743437446859,-500.0,0.00057534,120]
[356934052,1743437446868,-500.0,0.00057534,120]
[356934053,1743437446876,-500.0,0.00057534,120]
[356934054,1743437446883,-500.0,0.00057534,120]
[356934055,1743437446891,-500.0,0.00057534,120]
[356934056,1743437446898,-500.0,0.00057534,120]
[356934057,1743437446904,-500.0,0.00057534,120]
[356934058,1743437446911,-500.0,0.00057534,120]
[356934059,1743437446918,-500.0,0.00057534,120]
[356934060,1743437446926,-500.0,0.00057534,120]
[356934061,1743437446933,-500.0,0.00057534,120]
[356934062,1743437446941,-500.0,0.00057534,120]
[356934063,1743437446949,-500.0,0.00057534,120]
[356934064,1743437446956,-641.22,0.00057534,120]
[356934065,1743437446965,-500.0,0.00057534,120]
[356934066,1743437446971,-500.0,0.00057534,120]
[356934067,1743437446979,-500.0,0.00057534,120]
[356934068,1743437446985,-500.0,0.00057534,120]
[356934069,1743437446993,-332.83259026,0.00057534,120]
[356934070,1743437447000,-500.0,0.00057534,120]
[356934071,1743437447007,-500.0,0.00057534,120]
[356934072,1743437447014,-500.0,0.00057534,120]
[356934073,1743437447021,-500.0,0.00057534,120]
[356934074,1743437447029,-3238.8,0.00057534,12]
[356934075,1743437447035,-500.0,0.00057534,120]
[356934076,1743437447044,-275.3271017,0.00057534,120]
[356934077,1743437447052,-500.0,0.00057534,120]
[356934078,1743437447059,-500.0,0.00057534,120]
[356934079,1743437447067,-500.0,0.00057534,120]
[356934080,1743437447086,-500.0,0.00057534,120]
[356934081,1743437447104,-500.0,0.00057534,120]
[356934082,1743437447115,-500.0,0.00057534,120]
[356934083,1743437447123,-500.0,0.00057534,120]
[356934084,1743437447132,-500.0,0.00057534,30]
[356934085,1743437447142,-500.0,0.00057534,120]
[356934086,1743437447151,-500.0,0.00057534,120]
[356934087,1743437447161,-500.0,0.00057534,120]
[356934088,1743437447171,-500.0,0.00057534,120]
[356934089,1743437447181,-500.0,0.00057534,120]
[356934090,1743437447191,-439.01,0.00057534,120]
[356934091,1743437447205,-500.0,0.00057534,2]
[356934092,1743437447215,-417.8235017,0.00057534,120]
[356934093,1743437447225,-500.0,0.00057534,120]
[356934094,1743437447236,-652.51,0.00057534,120]
[356934095,1743437447246,-500.0,0.00057534,120]
[356934096,1743437447257,-397.2400913,0.00057534,120]
[356934097,1743437447270,-500.0,0.00057534,100]
[356934098,1743437447281,-500.0,0.00057534,120]
[356934099,1743437447291,-500.0,0.00057534,120]
[356934100,1743437447303,-500.0,0.00057534,120]
[356934101,1743437447314,-500.0,0.00057534,120]
[356934102,1743437447325,-500.0,0.00057534,120]
[356934103,1743437447335,-500.0,0.00057534,120]
[356934104,1743437447345,-500.0,0.00057534,120]
[356934105,1743437447355,-500.0,0.00057534,120]
[356934106,1743437447365,-500.0,0.00057534,120]
[356934107,1743437447375,-500.0,0.00057534,120]
[356934108,1743437447384,-500.0,0.00057534,120]
[356934109,1743437447394,-512.20918921,0.00057534,120]
[356934110,1743437447405,-500.0,0.00057534,120]
[356934111,1743437447415,-500.0,0.00057534,120]
[356934112,1743437447425,-500.0,0.00057534,120]
[356934113,1743437447435,-500.0,0.00057534,120]
[356934114,1743437447445,-500.0,0.00057534,120]
[356934115,1743437447455,-500.0,0.00057534,120]
[356934116,1743437447465,-500.0,0.00057534,120]
[356934117,1743437447475,-500.0,0.00057534,120]
[356934118,1743437447485,-500.0,0.00057534,120]
[356934119,1743437447494,-596.5,0.00057534,120]
[356934120,1743437447504,-500.0,0.00057534,120]
[356934121,1743437447513,-500.0,0.00057534,120]
[356934122,1743437447523,-207.75343184,0.00057534,120]
[356934123,1743437447532,-500.0,0.00057534,120]
[356934124,1743437447542,-500.0,0.00057534,120]
[356934125,1743437447554,-500.0,0.00057534,120]
[356934126,1743437447564,-500.0,0.00057534,120]
[356934127,1743437447574,-500.0,0.00057534,120]
[356934128,1743437447583,-500.0,0.00057534,120]
[356934129,1743437447593,-579.53,0.00057534,120]
[356934130,1743437447603,-500.0,0.00057534,120]
[356934131,1743437447613,-500.0,0.00057534,120]
[356934132,1743437447623,-500.0,0.00057534,120]
[356934133,1743437447633,-613.79639592,0.00057534,120]
[356934134,1743437447643,-500.0,0.00057534,120]
[356934135,1743437447653,-500.0,0.00057534,120]
[356934136,1743437447663,-500.0,0.00057534,120]
[356934137,1743437447673,-500.0,0.00057534,120]
[356934138,1743437447683,-1000.0,0.00057534,120]
[356934139,1743437447694,-500.0,0.00057534,120]
[356934140,1743437447703,-500.0,0.00057534,120]
[356934141,1743437447713,-500.0,0.00057534,120]
[356934142,1743437447723,-500.0,0.00057534,120]
[356934143,1743437447733,-500.0,0.00057534,120]
[356934144,1743437447742,-500.0,0.00057534,120]
[356934145,1743437447752,-500.0,0.00057534,30]
[356934146,1743437447761,-500.0,0.00057534,120]
[356934147,1743437447771,-500.0,0.00057534,120]
[356934148,1743437447782,-500.0,0.00057534,120]
[356934149,1743437447793,-859.92,0.00057534,120]
[356934150,1743437447802,-500.0,0.00057534,120]
[356934151,1743437447812,-500.0,0.00057534,120]
[356934152,1743437447823,-500.0,0.00057534,120]
[356934153,1743437447833,-500.0,0.00057534,120]
[356934154,1743437447845,-500.0,0.00057534,120]
[356934155,1743437447855,-500.0,0.00057534,120]
[356934156,1743437447864,-500.0,0.00057534,120]
[356934157,1743437447875,-500.0,0.00057534,120]
[356934158,1743437447885,-500.0,0.00057534,120]
[356934159,1743437447894,-500.0,0.00057534,120]
[356934160,1743437447905,-569.95054913,0.00057534,120]
[356934161,1743437447914,-500.0,0.00057534,120]
[356934162,1743437447924,-500.0,0.00057534,120]
[356934163,1743437447934,-500.0,0.00057534,120]
[356934164,1743437447944,-500.0,0.00057534,120]
[356934165,1743437447953,-500.0,0.00057534,120]
[356934166,1743437447963,-500.0,0.00057534,120]
[356934167,1743437447972,-500.0,0.00057534,120]
[356934168,1743437447982,-500.0,0.00057534,120]
[356934169,1743437447991,-500.0,0.00057534,120]
[356934170,1743437448001,-500.0,0.00057534,120]
[356934171,1743437448011,-500.0,0.00057534,120]
[356934172,1743437448021,-500.0,0.00057534,120]
[356934173,1743437448031,-500.0,0.00057534,120]
[356934174,1743437448040,-500.0,0.00057534,120]
[356934175,1743437448051,-500.0,0.00057534,120]
[356934176,1743437448061,-500.0,0.00057534,120]
[356934177,1743437448072,-500.0,0.00057534,120]
[356934178,1743437448082,-500.0,0.00057534,120]
[356934179,1743437448092,-500.0,0.00057534,120]
[356934180,1743437448101,-500.0,0.00057534,120]
[356934181,1743437448111,-500.0,0.00057535,120]
[356934182,1743437448122,-500.0,0.00057573,7]
[356934183,1743437448132,-3400.0,0.000576,7]
[356934184,1743437448141,-3400.0,0.000576,7]
[356934185,1743437448151,-1772.37322456,0.00057722,4]
[356934186,1743437448161,-705.58275936,0.00057732,15]
[356934187,1743437448171,-3400.0,0.000578,7]
[356934188,1743437448180,-232.81226,0.000578,120]
[356934189,1743437448190,-500.0,0.00057809,120]
[356934190,1743437448202,-164.55527046,0.000579,70]
[356934191,1743437448214,-158.8258547,0.000579,36]
[356934192,1743437448224,-1772.37322456,0.0005798,4]
[356934193,1743437448235,-10000.0,0.0005799,15]
[356934194,1743437448246,-15951.359021,0.0005799,4]
[356934195,1743437448256,-500.0,0.00057999,120]
[356934196,1743437448266,-500.0,0.00057999,120]
[356934197,1743437448278,-500.0,0.00057999,120]
[356934198,1743437448288,-500.0,0.00057999,120]
[356934199,1743437448299,-250.0,0.00058,20]
[356934200,1743437448309,-449786.27077704,0.00058,120]
[356934201,1743437448326,-18390.08133468,0.00058,120]
[356934202,1743437448339,-17154.06541339,0.00058,120]
[356934203,1743437448351,-567.6201728,0.00058,120]
[356934204,1743437448362,-435.489995,0.00058,120]
[356934205,1743437448375,-309.415,0.00058,120]
[356934206,1743437448388,-11122.79249631,0.00058,120]
[356934207,1743437448401,-355.64993399,0.00058,120]
[356934208,1743437448413,-1878.61487679,0.00058,120]
[356934209,1743437448423,-899.99999907,0.00058,120]
[356934210,1743437448433,-15817.33210557,0.00058,120]
[356934211,1743437448445,-21661.70060159,0.00058,120]
[356934212,1743437448457,-897.22892177,0.00058,120]
[356934213,1743437448473,-150.0,0.0005199,4]
[356934214,1743437448483,-814.60959613,0.00058,120]
[356934215,1743437448495,-1480.10962333,0.00058,120]
[356934216,1743437448507,-1600.60245299,0.00058,120]
[356934217,1743437448519,-739.34634792,0.00058,120]
[356934218,1743437448531,-1439.68725624,0.00058,120]
[356934219,1743437448543,-553.07007397,0.00058,120]
[356934220,1743437448555,-9847.78515924,0.00058,120]
[356934221,1743437562573,150.0,0.00033804,30]
[356934224,1743438028983,486.94135326,0.00033814,30]
[356934225,1743438308603,627.55927627,0.00033814,90]
[356934226,1743438310888,999.999996,0.00033814,120]
[356934227,1743438313024,478.71815245,0.00033814,91]
[356934228,1743438320352,592.4646237,0.00033814,120]
[356934229,1743438321215,1972.47833054,0.00033814,120]
[356934230,1743438322060,1076.22426829,0.00033814,120]
[356934231,1743438324438,402.59230063,0.00033814,120]
[356934232,1743438327434,823.54280358,0.00033814,30]
[356934233,1743438328765,1937.62166761,0.00033814,30]
[356934234,1743438329594,696.35828129,0.00033814,30]
[356934235,1743438337354,328.73116903,8e-05,2]
[356934236,1743438337384,116.15294809,8e-05,2]
[356934237,1743438338595,160.93215626,0.00033814,120]
[356934238,1743438340774,1323.62388363,0.00033814,120]
[356934239,1743438342423,928.26079427,0.00033814,120]
[356934240,1743438344769,1600.30169354,0.00033814,120]
[356934241,1743438348058,347.27375084,0.00033814,120]
[356934242,1743438362346,597.25361049,0.00033814,90]
[356934243,1743438366724,559.71561914,0.00033814,120]
[356934244,1743438369693,822.99448094,0.00033814,120]
[356934245,1743438371049,200.90232345,0.00033814,60]
[356934246,1743438374860,273.9837557,0.00033814,30]
[356934247,1743438376258,1901.44234046,0.00033814,120]
[356934248,1743438378504,208.27498354,0.00033814,120]
[356934249,1743438384748,1901.10926561,0.00033814,120]
[356934250,1743438390167,1210.86068944,0.00033814,120]
[356934251,1743438393628,199.41086217,0.00033814,60]
[356934252,1743438417107,215.79621021,0.00033814,120]
[356934254,1743438424247,1821.42447193,0.00033814,120]
[356934255,1743438424808,1369.72380584,0.00033814,120]
[356934256,1743438437023,329.73053046,0.00033814,120]
[356934257,1743438458266,819.03357032,0.00033814,120]
[356934258,1743438462904,2027.42342474,0.00033814,120]
[356934259,1743438468511,661.53961427,0.00033814,120]
[356934260,1743438471623,1081.80245599,0.00033814,120]
[356934261,1743438476297,368.47413201,0.00033814,30]
[356934262,1743438477119,823.15000061,0.00033814,120]
[356934263,1743438485453,652.61685827,0.00033814,30]
[356934264,1743438486913,951.58483737,0.00033814,120]
[356934265,1743438494000,286.18511364,0.00033814,30]
[356934266,1743438505814,-165.474061,0.000149,2]
[356934267,1743438510633,352.07371363,0.00033814,120]
[356934268,1743438511277,-158.42,0.000149,2]
[356934273,1743438513724,-3222.05150319,0.000149,2]
[356934274,1743438514498,-237.35,0.000149,2]
[356934275,1743438514885,1282.47979826,0.00033814,120]
[356934276,1743438515316,2030.82673568,0.00033814,120]
[356934277,1743438516230,207.45677681,0.00033814,30]
[356934278,1743438516647,1479.72245995,0.00033814,30]
[356934279,1743438517526,208.19495319,0.00033814,30]
[356934280,1743438517652,2692.60979665,0.00033814,30]
[356934281,1743438517779,890.21661243,0.00033814,120]
[356934282,1743438518030,1000.0,0.00033814,30]
[356934283,1743438518207,2326.83530318,0.00033814,30]
[356934284,1743438518451,1250.80565727,0.00033814,120]
[356934285,1743438518987,429.72630137,0.00033814,90]
[356934286,1743438520659,-150.0,0.000149,2]
[356934287,1743438521417,1293.2201631,0.00033814,120]
[356934288,1743438521618,1098.22927238,0.00033814,120]
[356934289,1743438522327,721.39496202,0.00033814,120]
[356934290,1743438524348,978.52390598,0.00033814,120]
[356934291,1743438524409,177.44356302,0.00033814,120]
[356934292,1743438525413,210.65756092,0.00033814,120]
[356934293,1743438526290,262.28932547,0.00033814,30]
[356934294,1743438526858,507.06735655,0.00033814,120]
[356934295,1743438527643,604.46408418,0.00033814,120]
[356934296,1743438528063,341.5511499,0.00033814,120]
[356934298,1743438530629,179.71960924,0.00033814,30]
[356934299,1743438538648,-2838.91945697,0.000149,2]
[356934300,1743438538679,-56.36076535,0.000149,2]
[356934304,1743438542673,165.474061,0.00014825,2]
[356934305,1743438555426,-105.33145403,0.000149,2]
[356934306,1743438555448,-224.38854597,0.00014973,2]
[356934320,1743438631914,-275.61145403,0.00014973,2]
[356934321,1743438631924,-150.0,0.00014981,2]
[356934322,1743438631934,-86.99669921,0.0001499,2]
[356934323,1743438631946,-406.95978996,0.0001499,2]
[356934324,1743438631956,-150.0,0.00014999,2]
[356934325,1743438631967,-403.00339004,0.00015,2]
[356934326,1743438632052,-1930.3577122,0.00015,2]
[356934327,1743438632064,-266.08916345,0.00015,2]
[356934328,1743438632076,-550.99707701,0.00015,2]
[356934329,1743438632090,-1620.7419444,0.00015,2]
[356934330,1743438632102,-4745.519166,0.00015,2]
[356934331,1743438632114,-322.78,0.00015,2]
[356934332,1743438632126,-894.064039,0.00015,2]
[356934333,1743438632137,-5628.99225069,0.00015,2]
[356934334,1743438632150,-2008.98499014,0.00015,2]
[356934335,1743438632162,-1482.5487398,0.00015,2]
[356934336,1743438632173,-12743.7032894,0.00015,2]
[356934337,1743438632185,-1182.86890123,0.00015,2]
[356934338,1743438632197,-606.55715538,0.00015,2]
[356934339,1743438632209,-26050.82521327,0.00015,2]
[356934340,1743438632222,-533.39699939,0.00015,2]
[356934386,1743438637846,-3000.0,0.00015,2]
[356934391,1743438637901,-5550.0,0.00015,2]
[356934393,1743438637914,-634.7954321,0.00015,2]
[356934395,1743438637926,-939.3309963,0.00015,2]
[356934397,1743438637938,-727.95966854,0.00015,2]
[356934398,1743438637949,-3745.31957642,0.00015,2]
[356934399,1743438637960,-15210.903517,0.00015,2]
[356934400,1743438638068,-439.215,0.00015,2]
[356934401,1743438638079,-515.29482318,0.00015,2]
[356934405,1743438640207,-69888.59773098,0.00015,2]
[356934406,1743438640298,-772.14378141,0.00015,2]
[356934407,1743438640310,-10532.0,0.00015,2]
[356934450,1743438640992,-235.64822472,0.00015,2]
[356934791,1743438646171,-434.63359168,0.00015,2]
[356934792,1743438646281,-498.45,0.00015,2]
[356934793,1743438646343,-8642.69965785,0.00015,2]
[356934802,1743438660344,-151.0,0.00014999,2]
[356934803,1743438670487,-161.44191272,0.000149,2]
[356934804,1743438679944,161.441913,0.00014825,2]
[356934806,1743438807381,-0.74024015,0.000149,2]
[356934807,1743438807404,-500.0,0.00014973,2]
[356934808,1743438807428,-150.0,0.00014999,2]
[356934809,1743438807454,-455399.25975985,0.00015,2]
[356934810,1743438876770,-456757.10584795,0.00015,2]
[356934811,1743438876797,-1386336.75448431,0.00015,2]
[356934820,1743439832066,-150.0,0.0001744,2]
[356934821,1743439832076,-150.0,0.00018696,2]
[356934822,1743439832086,-150.0,0.00019184,2]
[356934823,1743439832096,-450.82714874,0.000199,3]
[356934824,1743439832117,-4120.11341965,0.000199,3]
[356934825,1743439832127,-26.97116915,0.000201,7]
[356934826,1743439832139,-133.02883085,0.000201,7]
[356934827,1743439832149,-152.49329827,0.00022,3]